Workbook

Sheet Mehraufwand_Minderertrag
D2: Start
D7: Trinkwasserschutz-Tool
D8: Berechnung von Mehraufwand und Minderertrag infolge des
D9: Trinkwasserschutzes im Wald
F12: erstellt von der
F13: WSL Forschungsgruppe Forstliche Produktionssysteme
F16: Februar 2012
D23: Kontaktadressen:
D24: Clemens Blattert, +41 44 7392 494, clemens.blattert@wsl.ch | K24: Eidg. Forschungsanstalt WSL
D25: Dr. Anton Bürgi, +41 44 7392 241, anton.buergi@wsl.ch | K25: Zürcherstrasse 111
D26: Dr. Renato Lemm, +41 44 7392 478, renato.lemm@wsl.ch | K26: CH-8903 Birmensdorf
AJ162: Arbeitsobjekt
AJ166: Arbeitsort | AO166: Heimenholz in Rheinfelden (AG)
AJ168: Grösse Grundwasserschutzzone S2 | AR168: 14 | AS168: ha
AJ169: Grösse Grundwasserschutzzone S3 | AR169: 47 | AS169: ha
AJ170: Jährliche Nutzungsmenge in S2 | AR170: 158 | AS170: m3/a
AJ171: Jährliche Nutzungsmenge in S3 | AR171: 531 | AS171: m3/a
AJ174: Auswahl des Holzernteverfahrens:
AJ176: Holzernteverfahren (HV) | AN176: Prozess:
AN177: "Fällen / Aufarbeiten" | AQ177: "Rücken"
AJ179: HV 1) Motormanulles Verfahren | AN179: motormanuell | AQ179: Forstspezialschlepper
AJ182: HV 2) Vollmechanisiertes Verfahren | AN182: Harvester | AQ182: Forwarder
AJ185: HV 3) Verfahren für Steillagen | AN185: motormanuell | AQ185: Mobilseilkran
BP322: Holzernteverfahren 1 | CA322: HV 1 | DP322: Holzernteverfahren 2 | EA322: HV 2 | FP322: Holzernteverfahren 3 | GA322: HV 3
BP323: Motormanuelles Verfahren | DP323: Vollmechanisiertes Verfahren | FP323: Verfahren für Steillagen
BP326: Kostenansätze | DP326: Kostenansätze | FP326: Kostenansätze
BP328: Fällen / Aufarbeiten: | BS328: motormanuelle Holzhauerei | BX328: 75 | BY328: Fr./h | DP328: Fällen / Aufarbeiten: | DS328: Harvester | DX328: 300 | DY328: Fr./h | FP328: Fällen / Aufarbeiten: | FS328: motormanuelle Holzhauerei | FX328: 75 | FY328: Fr./h
BS329: (Personal + Motorsäge) | DS329: (Maschinist + Harvester) | FS329: (Personal + Motorsäge)
BP331: Rücken: | BS331: Forstspezialschlepper | BX331: 190 | BY331: Fr./h | DP331: Rücken: | DS331: Forwarder | DX331: 200 | DY331: Fr./h | FP331: Rücken: | FS331: Mobilseilkran | FX331: 230 | FY331: Fr./h
BS332: (Maschinist + Schlepper) | DS332: (Maschinist + Forwarder) | FS332: (Maschinist + Seilkran)
BP484: Zusätzliche Kosten für Transport des Holzes ausserhalb S3 | CA484: HV 1 | DP484: Zusätzliche Kosten für Transport des Holzes ausserhalb S3 | EA484: HV 2
BP485: Vorschrift: Keine chemische Behandlung von gelagertem Holz / keine Lagerung von behandeltem Holz (VS 3) | DP485: Vorschrift: Keine chemische Behandlung von gelagertem Holz / keine Lagerung von behandeltem Holz (VS 3)
BV491: Abk. | DV491: Abk.
BP492: Zusätzliche Rückedistanz auf der Strasse bis ausserhalb S3 | BV492: D | BX492: 0.6 | BY492: km | DP492: Zusätzliche Rückedistanz auf der Strasse bis ausserhalb S3 | DV492: D | DX492: 0.6 | DY492: km
BP493: Durchschnittliche Fahrzeuggeschwindigkeit | BV493: VFahrz | BX493: 10 | BY493: km/h | DP493: Durchschnittliche Fahrzeuggeschwindigkeit | DV493: VFahrz | DX493: 10 | DY493: km/h
BP494: Kostenansatz Rücken (Maschinist + Schlepper) | BV494: KRück | BX494: =BX331 -> 190 | BY494: Fr./h | DP494: Kostenansatz Rücken (Maschinist + Forwarder) | DV494: KRück | DX494: =DX331 -> 200 | DY494: Fr./h
BP495: Nutzungsmenge in S2 und S3 pro Hektar und Jahr | BV495: NS2+S3 | BX495: =($AR$170+$AR$171)/($AR$168+$AR$169) -> 11.29508197 | BY495: m3/(ha a) | DP495: Nutzungsmenge in S2 und S3 pro Hektar und Jahr | DV495: NS2+S3 | DX495: =($AR$170+$AR$171)/($AR$168+$AR$169) -> 11.29508197 | DY495: m3/(ha a)
BP496: Lastvolumen Forstspezialschlepper | BV496: LVol | BX496: 4 | BY496: m3 | DP496: Lastvolumen Forwarder | DV496: LVol | DX496: 18 | DY496: m3
BP498: Zusätzliche Kosten für Transport des Holzes ausserhalb S3 | BV498: ZKTrans | BX498: =(2*BX492*BX494*BX495)/(BX496*BX493) -> 64.38196721 | BY498: Fr./(ha a) | DP498: Zusätzliche Kosten für Transport des Holzes ausserhalb S3 | DV498: ZKTrans | DX498: =(2*DX492*DX494*DX495)/(DX493*DX496) -> 15.06010929 | DY498: Fr./(ha a)
BP644: Zusätzliche Kosten für Auffangwannen | CA644: HV 1 | FP644: Zusätzliche Kosten für Auffangwannen | GA644: HV 3
BP645: Empfehlung: Keine ungeschützte Lagerung und Umfüllung von Betriebsstoffen (ES 3) | FP645: Empfehlung: Keine ungeschützte Lagerung und Umfüllung von Betriebsstoffen (ES 3)
BS648: (Ergebnis wird aufgerundet) | FT648: (Ergebnis wird aufgerundet)
BV654: Abk. | FV654: Abk.
BP655: Anzahl benötigter Wannen | BV655: AWanne | BW655: (genau) | BX655: =($AR168+$AR169)/200 -> 0.305 | BY655: - | FP655: Anzahl benötigter Wannen | FV655: AWanne | FW655: (genau) | FX655: =($AR168+$AR169)/200 -> 0.305
BW656: (gerundet) | BX656: =ROUNDUP(BX655,0) -> 1 | BY656: - | FW656: (gerundet) | FX656: =ROUNDUP(FX655,0) -> 1
BP657: Anschaffungskosten einer Auffangwanne | BV657: KWanne | BX657: 42 | BY657: Fr. | FP657: Anschaffungskosten einer Auffangwanne | FV657: KWanne | FX657: 42 | FY657: Fr.
BP658: Lebendsdauer der Auffangwanne | BV658: Ldauer | BX658: 5 | BY658: a | FP658: Lebendsdauer der Auffangwanne | FV658: Ldauer | FX658: 5 | FY658: a
BP659: Fläche S2 und S3 | BV659: AS2+S3 | BX659: =$AR$168+$AR$169 -> 61 | BY659: ha | FP659: Fläche S2 und S3 | FV659: AS2+S3 | FX659: =$AR$168+$AR$169 -> 61 | FY659: ha
BP661: Zusätzliche Kosten für Auffangwannen | BV661: ZKWanne | BX661: =(BX656*BX657)/(BX658*BX659) -> 0.137704918 | BY661: Fr./(ha a) | FP661: Zusätzliche Kosten für Auffangwannen | FV661: ZKWanne | FX661: =(FX656*FX657)/(FX658*FX659) -> 0.137704918 | FY661: Fr./(ha a)
DP804: Zusätzliche Kosten für Umsetzen auf Ausweichfläche | EA804: HV 2
DP805: Empfehlung: Bodenschonende Befahrung (ES 3)
DP811: Ergebnis:
DP812: falls pt/a | DQ812: ≤ 3 | DR812: → | DS812: ist pums | DT812: 0
DP813: " | DQ813: > 3 - 5 | DR813: → | DS813: " | DT813: 0.5
DP814: " | DQ814: > 5 - 10 | DR814: → | DS814: " | DT814: 0.75
DP815: " | DQ815: > 10 - 20 | DR815: → | DS815: " | DT815: 1
DP816: " | DQ816: > 20 | DR816: → | DS816: "
DV818: Abk.
DP819: Jährliche Nutzungsmenge in S2 und S3: | DV819: NS2+S3 | DX819: =$AR$170+$AR$171 -> 689 | DY819: m3/a
DP820: Tägliche Maschinenleistung (Forwarder): | DV820: Ltag | DX820: 100 | DY820: m3/tag
DP821: Hiebstage pro Jahr | DV821: pt/a | DX821: =DX819/DX820 -> 6.89 | DY821: Tage/Jahr
DV827: Abk.
DP828: Wahrscheinlichkeit des Umsetzens pro Jahr | DV828: pums | DX828: =IF(DX819/DX820<=3,0,IF(DX819/DX820<=5,0.5,IF(DX819/DX820<=10,0.75,IF(DX819/DX820<=20,1,IF(DX819/DX820>20,(DX819/DX820)/20))))) -> 0.75 | DY828: /a
DP829: Kostenansatz des Tieflader + Fahrer | DV829: KTief | DX829: 150 | DY829: Fr./h
DP830: Kostenansatz Rücken (Maschinist + Forwarder) | DV830: KRück | DX830: =DX331 -> 200 | DY830: Fr./h
DP831: Durchschnittliche Fahrzeuggeschwindigkeit des Tieflader | DV831: VFahrz | DX831: 50 | DY831: km/h
DP832: Durchschnittliche Umsetzdistanz | DV832: Dums | DX832: 20 | DY832: km
DP833: Fläche S2 und S3 | DV833: AS2+S3 | DX833: =$AR$168+$AR$169 -> 61 | DY833: ha
DP835: Zusätzliche Kosten für Umsetzen auf Ausweichfläche | DV835: ZKUms | DX835: =((DX829+DX830)*2*DX832*DX828)/(DX831*DX833) -> 3.442622951 | DY835: Fr./(ha a)
BP965: Zusätzliche Kosten für umweltverträgliche Treib- und Schmierstoffe | CA965: HV 1 | DP965: Zusätzliche Kosten für umweltverträgliche Treib- und Schmierstoffe | EA965: HV 2 | FP965: Zusätzliche Kosten für umweltverträgliche Treib- und Schmierstoffe | GA965: HV 3
BP966: Empfehlung: Verwendung umweltverträglicher Treib- und Schmierstoffe (ES 3) | DP966: Empfehlung: Umweltverträgliche Treib- und Schmierstoffe (ES 3) | FP966: Empfehlung: Umweltverträgliche Treib- und Schmierstoffe (ES 3)
BV971: Abk. | DV971: Abk. | FV971: Abk.
BP972: Nutzungsmenge in S2 und S3 pro Hektar und Jahr | BV972: NS2+S3 | BX972: =($AR$170+$AR$171)/($AR$168+$AR$169) -> 11.29508197 | BY972: m3/(ha a) | DP972: Nutzungsmenge in S2 und S3 pro Hektar und Jahr | DV972: NS2+S3 | DX972: =($AR$170+$AR$171)/($AR$168+$AR$169) -> 11.29508197 | DY972: m3/(ha a) | FP972: Nutzungsmenge in S2 und S3 pro Hektar und Jahr | FV972: NS2+S3 | FX972: =($AR$170+$AR$171)/($AR$168+$AR$169) -> 11.29508197 | FY972: m3/(ha a)
BP974: Preisdifferenz zwischen herköm. u. umweltver. Geräteb. | BV974: Kgb | BX974: 2.2 | BY974: Fr./l | DP974: Preisdifferenz zwischen herköm. u. umweltver. Hydrauliköl | DV974: Khö | DX974: 4.7 | DY974: Fr./l | FP974: Preisdifferenz zwischen herköm. u. umweltver. Geräteb. | FV974: Kgb | FX974: 2.2 | FY974: Fr./l
BP975: Verbrauch des Gerätebenzins Motorsäge | BV975: Vgms | BX975: 0.5 | BY975: l/m3 | DP975: Verbrauch des Hydrauliköls Harvester | DV975: Vhhv | DX975: 0.04 | DY975: l/m3 | FP975: Verbrauch des Gerätebenzins Motorsäge | FV975: Vgms | FX975: 0.5 | FY975: l/m3
DP976: Verbrauch des Hydrauliköls Forwarder | DV976: Vhfw | DX976: 0.01 | DY976: l/m3
BP977: Preisdifferenz zwischen herköm. u. umweltver. Kettenöl | BV977: Kkö | BX977: 1.8 | BY977: Fr./l | FP977: Preisdifferenz zwischen herköm. u. umweltver. Kettenöl | FV977: Kkö | FX977: 1.8 | FY977: Fr./l
BP978: Verbrauch des Sägekettenöls Motorsäge | BV978: Vkms | BX978: 0.1 | BY978: l/m3 | DP978: Preisdifferenz zwischen herköm. u. umweltver. Kettenöl | DV978: Kkö | DX978: 1.8 | DY978: Fr./l | FP978: Verbrauch des Sägekettenöls Motorsäge | FV978: Vkms | FX978: 0.1 | FY978: l/m3
DP979: Verbrauch des Sägekettenöls Harvester | DV979: Vkhv | DX979: 0.1 | DY979: l/m3
BP980: Preisdifferenz zwischen herköm. u. umweltver. Hydrauliköl | BV980: Khö | BX980: 4.7 | BY980: Fr./l | FP980: Preisdifferenz zwischen herköm. u. umweltver. Hydrauliköl | FV980: Khö | FX980: 4.7 | FY980: Fr./l
BP981: Verbrauch des Hydrauliköls Forstspezialschlepper | BV981: Vhfs | BX981: 0.03 | BY981: l/m3 | FP981: Verbrauch des Hydrauliköls Seilkarn | FV981: Vhskran | FX981: 0.03 | FY981: l/m3
BP983: Zusätzliche Kosten für umweltver. Treib- u. Schmierstoffe | BV983: ZKTS | BX983: =BX972*(BX974*BX975+BX977*BX978+BX980*BX981) -> 16.05031148 | BY983: Fr./(ha a) | DP983: Zusätzliche Kosten für umweltver. Treib- u. Schmierstoffe | DV983: ZKTS | DX983: =DX972*(DX974*(DX975+DX976)+DX978*DX979) -> 4.687459016 | DY983: Fr./(ha a) | FP983: Kosten für umweltverträgliche Treib- und Schmierstoffe | FV983: ZKTS | FX983: =FX972*(FX974*FX975+FX977*FX978+FX980*FX981) -> 16.05031148 | FY983: Fr./(ha a)
BP1125: Differenz im erntekostenfreien Erlöse bei Erhöhung des Laubholz-Anteils | CA1125: HV 1 | DP1125: Differenz im erntekostenfreien Erlöse bei Erhöhung des Laubholz-Anteils | EA1125: HV 2 | FP1125: Differenz im erntekostenfreien Erlöse bei Erhöhung des Laubholz-Anteils | GA1125: HV 3
BP1126: Empfehlung: Laubbäume bevorzugen (ES 3) | DP1126: Empfehlung: Laubbäume bevorzugen (ES 3) | FP1126: Empfehlung: Laubbäume bevorzugen (ES 3)
BP1132: Erntekostenfreier Erlös in Fr./(ha a) | DP1132: Erntekostenfreier Erlös in Fr./(ha a) | FP1132: Erntekostenfreier Erlös in Fr./(ha a)
BP1134: Fichte | BT1134: Buche | DP1134: Fichte | DT1134: Buche | FP1134: Fichte | FT1134: Buche
BP1135: Bonität | BQ1135: Holzernteverfahren | BT1135: Bonität | BU1135: Holzernteverfahren | DP1135: Bonität | DQ1135: Holzernteverfahren | DT1135: Bonität | DU1135: Holzernteverfahren | FP1135: Bonität | FQ1135: Holzernteverfahren | FT1135: Bonität | FU1135: Holzernteverfahren
BQ1136: 1) | BR1136: 2) | BS1136: 3) | BU1136: 1) | BV1136: 2) | BW1136: 3) | DQ1136: 1) | DR1136: 2) | DS1136: 3) | DU1136: 1) | DV1136: 2) | DW1136: 3) | FQ1136: 1) | FR1136: 2) | FS1136: 3) | FU1136: 1) | FV1136: 2) | FW1136: 3)
BP1137: 18 | BQ1137: =Erntekostenfreie_Erlöse!C6 -> 66.94782502 | BR1137: =Erntekostenfreie_Erlöse!D6 -> 513.1383908 | BS1137: =Erntekostenfreie_Erlöse!E6 -> -12.21176264 | BT1137: 18 | BU1137: =Erntekostenfreie_Erlöse!H6 -> -89.34611111 | BV1137: =Erntekostenfreie_Erlöse!I6 -> 115.980205 | BW1137: =Erntekostenfreie_Erlöse!J6 -> -91.35091946 | DP1137: 18 | DQ1137: =Erntekostenfreie_Erlöse!C6 -> 66.94782502 | DR1137: =Erntekostenfreie_Erlöse!D6 -> 513.1383908 | DS1137: =Erntekostenfreie_Erlöse!E6 -> -12.21176264 | DT1137: 18 | DU1137: =Erntekostenfreie_Erlöse!H6 -> -89.34611111 | DV1137: =Erntekostenfreie_Erlöse!I6 -> 115.980205 | DW1137: =Erntekostenfreie_Erlöse!J6 -> -91.35091946 | FP1137: 18 | FQ1137: =Erntekostenfreie_Erlöse!C6 -> 66.94782502 | FR1137: =Erntekostenfreie_Erlöse!D6 -> 513.1383908 | FS1137: =Erntekostenfreie_Erlöse!E6 -> -12.21176264 | FT1137: 18 | FU1137: =Erntekostenfreie_Erlöse!H6 -> -89.34611111 | FV1137: =Erntekostenfreie_Erlöse!I6 -> 115.980205 | FW1137: =Erntekostenfreie_Erlöse!J6 -> -91.35091946
BP1138: 22 | BQ1138: =Erntekostenfreie_Erlöse!C7 -> 239.3612773 | BR1138: =Erntekostenfreie_Erlöse!D7 -> 795.9629896 | BS1138: =Erntekostenfreie_Erlöse!E7 -> 142.5295309 | BT1138: 22 | BU1138: =Erntekostenfreie_Erlöse!H7 -> 46.59590691 | BV1138: =Erntekostenfreie_Erlöse!I7 -> 287.5152055 | BW1138: =Erntekostenfreie_Erlöse!J7 -> 9.086475368 | DP1138: 22 | DQ1138: =Erntekostenfreie_Erlöse!C7 -> 239.3612773 | DR1138: =Erntekostenfreie_Erlöse!D7 -> 795.9629896 | DS1138: =Erntekostenfreie_Erlöse!E7 -> 142.5295309 | DT1138: 22 | DU1138: =Erntekostenfreie_Erlöse!H7 -> 46.59590691 | DV1138: =Erntekostenfreie_Erlöse!I7 -> 287.5152055 | DW1138: =Erntekostenfreie_Erlöse!J7 -> 9.086475368 | FP1138: 22 | FQ1138: =Erntekostenfreie_Erlöse!C7 -> 239.3612773 | FR1138: =Erntekostenfreie_Erlöse!D7 -> 795.9629896 | FS1138: =Erntekostenfreie_Erlöse!E7 -> 142.5295309 | FT1138: 22 | FU1138: =Erntekostenfreie_Erlöse!H7 -> 46.59590691 | FV1138: =Erntekostenfreie_Erlöse!I7 -> 287.5152055 | FW1138: =Erntekostenfreie_Erlöse!J7 -> 9.086475368
BP1139: 26 | BQ1139: =Erntekostenfreie_Erlöse!C8 -> 365.153681 | BR1139: =Erntekostenfreie_Erlöse!D8 -> 1114.372695 | BS1139: =Erntekostenfreie_Erlöse!E8 -> 237.6743469 | BT1139: 26 | BU1139: =Erntekostenfreie_Erlöse!H8 -> 95.62899732 | BV1139: =Erntekostenfreie_Erlöse!I8 -> 432.4622524 | BW1139: =Erntekostenfreie_Erlöse!J8 -> 41.81090852 | DP1139: 26 | DQ1139: =Erntekostenfreie_Erlöse!C8 -> 365.153681 | DR1139: =Erntekostenfreie_Erlöse!D8 -> 1114.372695 | DS1139: =Erntekostenfreie_Erlöse!E8 -> 237.6743469 | DT1139: 26 | DU1139: =Erntekostenfreie_Erlöse!H8 -> 95.62899732 | DV1139: =Erntekostenfreie_Erlöse!I8 -> 432.4622524 | DW1139: =Erntekostenfreie_Erlöse!J8 -> 41.81090852 | FP1139: 26 | FQ1139: =Erntekostenfreie_Erlöse!C8 -> 365.153681 | FR1139: =Erntekostenfreie_Erlöse!D8 -> 1114.372695 | FS1139: =Erntekostenfreie_Erlöse!E8 -> 237.6743469 | FT1139: 26 | FU1139: =Erntekostenfreie_Erlöse!H8 -> 95.62899732 | FV1139: =Erntekostenfreie_Erlöse!I8 -> 432.4622524 | FW1139: =Erntekostenfreie_Erlöse!J8 -> 41.81090852
BP1140: 30 | BQ1140: =Erntekostenfreie_Erlöse!C9 -> 499.9504256 | BR1140: =Erntekostenfreie_Erlöse!D9 -> 1402.327839 | BS1140: =Erntekostenfreie_Erlöse!E9 -> 341.7695794 | DP1140: 30 | DQ1140: =Erntekostenfreie_Erlöse!C9 -> 499.9504256 | DR1140: =Erntekostenfreie_Erlöse!D9 -> 1402.327839 | DS1140: =Erntekostenfreie_Erlöse!E9 -> 341.7695794 | FP1140: 30 | FQ1140: =Erntekostenfreie_Erlöse!C9 -> 499.9504256 | FR1140: =Erntekostenfreie_Erlöse!D9 -> 1402.327839 | FS1140: =Erntekostenfreie_Erlöse!E9 -> 341.7695794
BV1143: Abk. | DV1143: Abk. | FV1143: Abk.
BP1144: Laubholzanteil ist | BV1144: LHist | BX1144: 50 | BY1144: % | DP1144: Laubholzanteil ist | DV1144: LHist | DX1144: 50 | DY1144: % | FP1144: Laubholzanteil ist | FV1144: LHist | FX1144: 50 | FY1144: %
BP1145: Laubholzanteil soll | BV1145: LHsoll | BX1145: 100 | BY1145: % | DP1145: Laubholzanteil soll | DV1145: LHsoll | DX1145: 100 | DY1145: % | FP1145: Laubholzanteil soll | FV1145: LHsoll | FX1145: 100 | FY1145: %
BP1146: Erntekostenfreier Erlös für Fichte (entsprechend der Bonität) | BV1146: Efi | BX1146: 365 | BY1146: Fr./(ha a) | BZ1146: Werte aus Tabelle entnehmen | DP1146: Erntekostenfreier Erlös für Fichte (entsprechend der Bonität) | DV1146: Efi | DX1146: 1114 | DY1146: Fr./(ha a) | DZ1146: Werte aus Tabelle entnehmen | FP1146: Erntekostenfreier Erlös für Fichte (entsprechend der Bonität) | FV1146: Efi | FX1146: 238 | FY1146: Fr./(ha a) | FZ1146: Werte aus Tabelle entnehmen
BP1147: Erntekostenfreier Erlös für Buche (entsprechend der Bonität) | BV1147: Ebu | BX1147: 47 | BY1147: Fr./(ha a) | DP1147: Erntekostenfreier Erlös für Buche (entsprechend der Bonität) | DV1147: Ebu | DX1147: 288 | DY1147: Fr./(ha a) | FP1147: Erntekostenfreier Erlös für Buche (entsprechend der Bonität) | FV1147: Ebu | FX1147: 9 | FY1147: Fr./(ha a)
BP1149: Differenz im erntekostenfreien Erlös bei Erhöhung | BV1149: DIFFLH NH | BX1149: =((BX1145-BX1144)*(BX1146-BX1147))/100 -> 159 | BY1149: Fr./(ha a) | DP1149: Differenz im erntekostenfreier Erlös bei Erhöhung | DV1149: DIFFLH NH | DX1149: =((DX1145-DX1144)*(DX1146-DX1147))/100 -> 413 | DY1149: Fr./(ha a) | FP1149: Differenz im erntekostenfreier Erlös bei Erhöhung | FV1149: DIFFLH NH | FX1149: =((FX1145-FX1144)*(FX1146-FX1147))/100 -> 114.5 | FY1149: Fr./(ha a)
BP1150: des LH-Anteils | DP1150: des LH-Anteils | FP1150: des LH-Anteils
BP1288: Zusätzliche Kosten für das Betanken der Motorsäge in S3 | CA1288: HV 1 | FP1288: Zusätzliche Kosten für das Betanken der Motorsäge in S3 | GA1288: HV 3
BP1289: Empfehlung: Kein Betanken von Maschinen (ES 2) | FP1289: Empfehlung: Kein Betanken von Maschinen (ES 2)
BV1295: Abk. | FV1295: Abk.
BP1296: durchschnittliche Marschdistanz Grenze S2 (bis Fahrzeug) | BV1296: Mdist | BX1296: 0.26 | BY1296: km | FP1296: durchschnittliche Marschdistanz Grenze S2 | FV1296: Mdist | FX1296: 0.26 | FY1296: km
BP1297: Lohnansatz Forstwart (motormanuelle Holzhauerei) | BV1297: Kfor | BX1297: =BX328 -> 75 | BY1297: Fr./h | FP1297: Lohnansatz Forstwart (motormanuelle Holzhauerei) | FV1297: Kfor | FX1297: =FX328 -> 75 | FY1297: Fr./h
BP1298: Marschgeschwindigkeit | BV1298: Mgesch | BX1298: 5 | BY1298: km/h | FP1298: Marschgeschwindigkeit | FV1298: Mgesch | FX1298: 5 | FY1298: km/h
BP1299: Nutzungsmenge in S2 und S3 pro Hektar und Jahr | BV1299: NS2+S3 | BX1299: =($AR$170+$AR$171)/($AR$168+$AR$169) -> 11.29508197 | BY1299: m3/(ha a) | FP1299: Nutzungsmenge in S2 und S3 pro Hektar und Jahr | FV1299: NS2+S3 | FX1299: =($AR$170+$AR$171)/($AR$168+$AR$169) -> 11.29508197 | FY1299: m3/(ha a)
BP1300: Verbrauch des Gerätebenzins Motorsäge | BV1300: Vgms | BX1300: 0.5 | BY1300: l/m3 | FP1300: Verbrauch des Gerätebenzins Motorsäge | FV1300: Vgms | FX1300: 0.5 | FY1300: l/m3
BP1301: Fassungsvermögen Treibstofftank Motorsäge | BV1301: Tvol | BX1301: 0.7 | BY1301: l | FP1301: Fassungsvermögen Treibstofftank Motorsäge | FV1301: Tvol | FX1301: 0.7 | FY1301: l
BP1303: Zusätzliche Kosten für das Betanken der Motorsäge in S3 | BV1303: ZKTank | BX1303: =(2*BX1296*BX1297*BX1299*BX1300)/(BX1298*BX1301) -> 62.92974239 | BY1303: Fr./(ha a) | FP1303: Zusätzliche Kosten für das Betanken der Motorsäge in S3 | FV1303: ZKTank | FX1303: =(2*FX1296*FX1297*FX1299*FX1300)/(FX1298*FX1301) -> 62.92974239 | FY1303: Fr./(ha a)
BP1448: Zusätzliche Kosten durch Entfernen von Ernterückständen | CA1448: HV 1 | DP1448: Zusätzliche Kosten durch Entfernen von Ernterückständen | EA1448: HV 2
BP1449: Empfehlung: Entfernen von Ernterückständen (ES 2) | DP1449: Empfehlung: Entfernen von Ernterückständen (ES 2)
BV1454: Abk. | DV1454: Abk.
BP1455: Nutzungsmenge in S2 pro Hektar und Jahr | BV1455: NS2 | BX1455: =$AR$170/$AR$168 -> 11.28571429 | BY1455: m3/(ha a) | DP1455: Nutzungsmenge in S2 pro Hektar und Jahr | DV1455: NS2 | DX1455: =$AR$170/$AR$168 -> 11.28571429 | DY1455: m3/(ha a)
BP1456: Anteil Ernterückstände | BV1456: Pernt | BX1456: 0.1 | BY1456: - | DP1456: Anteil Ernterückstände | DV1456: Pernt | DX1456: 0.1 | DY1456: -
BP1457: Kosten Schlagräumung (rücken mit Forwarder + Hacken) | BV1457: Kha | BX1457: 25 | BY1457: Fr./m3 | DP1457: Kosten Schlagräumung (rücken mit Forwarder + Hacken) | DV1457: Kha | DX1457: 25 | DY1457: Fr./m3
BP1459: Zusätzliche Kosten durch Entfernen von Ernterückständen | BV1459: ZKEr | BX1459: =BX1455*BX1456*BX1457 -> 28.21428571 | BY1459: Fr./(ha a) | DP1459: Zusätzliche Kosten durch Entfernen von Ernterückständen | DV1459: ZKEr | DX1459: =DX1455*DX1456*DX1457 -> 28.21428571 | DY1459: Fr./(ha a)
BP1614: Ergebnis - Motormanuelles Holzernteverfahren | CA1614: HV 1 | DP1614: Ergebnis - Vollmechanisiertes Holzernteverfahren | EA1614: HV 2 | FP1614: Ergebnis - Holzernteverfahren für Steillagen | GA1614: HV 3
BP1618: Arbeitsort | BU1618: =Arbeitsort -> Heimenholz in Rheinfelden (AG) | DP1618: Arbeitsort | DU1618: =Arbeitsort -> Heimenholz in Rheinfelden (AG) | FP1618: Arbeitsort | FU1618: =Arbeitsort -> Heimenholz in Rheinfelden (AG)
BP1619: Grösse Grundwasserschutzzone S2 | BX1619: =AR168 -> 14 | BY1619: ha | DP1619: Grösse Grundwasserschutzzone S2 | DX1619: =AR168 -> 14 | DY1619: ha | FP1619: Grösse Grundwasserschutzzone S2 | FX1619: =AR168 -> 14 | FY1619: ha
BP1620: Grösse Grundwasserschutzzone S3 | BX1620: =AR169 -> 47 | BY1620: ha | DP1620: Grösse Grundwasserschutzzone S3 | DX1620: =AR169 -> 47 | DY1620: ha | FP1620: Grösse Grundwasserschutzzone S3 | FX1620: =AR169 -> 47 | FY1620: ha
BP1622: Mehraufwand durch: | BX1622: Fr./(ha a) | BY1622: % | DP1622: Mehraufwand durch: | DX1622: Fr./(ha a) | DY1622: % | FP1622: Mehraufwand durch: | FX1622: Fr./(ha a) | FY1622: %
BP1623: zusätzlichen Transport (VS 3) | BV1623: ZKTrans | BX1623: =BX498 -> 64.38196721 | BY1623: =100/(BX$1623+BX$1624+BX$1625+BX$1626+BX$1627+BX$1630)*BX1623 -> 19.46756561 | DP1623: zusätzlichen Transport (VS 3) | DV1623: ZKTrans | DX1623: =DX498 -> 15.06010929 | DY1623: =100/(DX$1623+DX$1624+DX$1625+DX$1626+DX$1629)*DX1623 -> 3.242886328 | FP1623: Auffangwannen (ES 3) | FV1623: ZKWanne | FX1623: =FX661 -> 0.137704918 | FY1623: =100/(FX$1623+FX$1624+FX$1625+FX$1628)*FX1623 -> 0.07112204939
BP1624: Auffangwannen (ES 3) | BV1624: ZKWanne | BX1624: =BX661 -> 0.137704918 | BY1624: =100/(BX$1623+BX$1624+BX$1625+BX$1626+BX$1627+BX$1630)*BX1624 -> 0.04163867062 | DP1624: Umsetzen auf Ausweichfläche (ES 3) | DV1624: ZKUms | DX1624: =DX835 -> 3.442622951 | DY1624: =100/(DX$1623+DX$1624+DX$1625+DX$1626+DX$1629)*DX1624 -> 0.7412983986 | FP1624: umweltverträgiche Treib- u. Schmierstoffe (ES 3) | FV1624: ZKTS | FX1624: =FX983 -> 16.05031148 | FY1624: =100/(FX$1623+FX$1624+FX$1625+FX$1628)*FX1624 -> 8.289689735
BP1625: umweltverträgiche Treib- u. Schmierstoffe (ES 3) | BV1625: ZKTS | BX1625: =BX983 -> 16.05031148 | BY1625: 4.853229953 | DP1625: umweltverträgiche Treib- u. Schmierstoffe (ES 3) | DV1625: ZKTS | DX1625: =DX983 -> 4.687459016 | DY1625: 1.00934837 | FP1625: Betanken in S3 (ES 2) | FV1625: ZKTank | FX1625: =FX1303 -> 62.92974239 | FY1625: 32.50205084
BP1626: Betanken in S3 (ES 2) | BV1626: ZKTank | BX1626: =BX1303 -> 62.92974239 | BY1626: 19.02844759 | DP1626: Entfernen von Ernterückständen (ES 2) | DV1626: ZKEr | DX1626: =DX1459 -> 28.21428571 | DY1626: 6.075369018
BP1627: Entfernen von Ernterückständen (ES 2) | BV1627: ZKEr | BX1627: =BX1459 -> 28.21428571 | BY1627: 8.531324563 | FP1627: Minderertrag durch: | FX1627: Fr./(ha a) | FY1627: %
DP1628: Minderertrag durch: | DX1628: Fr./(ha a) | DY1628: % | FP1628: Erhöhung des Laubholz-Anteils (ES 3) | FV1628: DIFFLH NH | FX1628: =FX1149 -> 114.5 | FY1628: =100/(FX$1623+FX$1624+FX$1625+FX$1628)*FX1628 -> 59.13713738
BP1629: Minderertrag durch: | BX1629: Fr./(ha a) | BY1629: % | DP1629: Erhöhung des Laubholz-Anteils (ES 3) | DV1629: DIFFLH NH | DX1629: =DX1149 -> 413 | DY1629: =100/(DX$1623+DX$1624+DX$1625+DX$1626+DX$1629)*DX1629 -> 88.93109789
BP1630: Erhöhung des Laubholz-Anteils (ES 3) | BV1630: DIFFLH NH | BX1630: =BX1149 -> 159 | BY1630: =100/(BX$1623+BX$1624+BX$1625+BX$1626+BX$1627+BX$1630)*BX1630 -> 48.07779361 | FP1630: Mehraufwand / Minderertrag pro Hektar und Jahr durch: | FX1630: Fr./(ha a)
DP1631: Mehraufwand / Minderertrag pro Hektar und Jahr durch: | DX1631: Fr./(ha a) | FP1631: Vorschriften (VS) | FX1631: -
BP1632: Mehraufwand / Minderertrag pro Hektar und Jahr durch: | BX1632: Fr./(ha a) | DP1632: Vorschriften (VS) | DX1632: =DX1623 -> 15.06010929 | FP1632: Empfehlungen (ES) | FX1632: =FX1623+FX1624+FX1625+FX1628 -> 193.6177588
BP1633: Vorschriften (VS) | BX1633: =BX1623 -> 64.38196721 | DP1633: Empfehlungen (ES) | DX1633: =DX1624+DX1625+DX1629+DX1626 -> 449.3443677
BP1634: Empfehlungen (ES) | BX1634: =BX1624+BX1625+BX1626+BX1630+BX1627 -> 266.3320445 | FP1634: Mehraufwand / Minderertrag pro Jahr für die gesamte Schutzzone (S2+S3) durch: | FX1634: Fr./a
DP1635: Mehraufwand / Minderertrag pro Jahr für die gesamte Schutzzone (S2+S3) durch: | DX1635: Fr./a | FP1635: Vorschriften (VS) | FX1635: -
BP1636: Mehraufwand / Minderertrag pro Jahr für die gesamte Schutzzone (S2+S3) durch: | BX1636: Fr./a | DP1636: Vorschriften (VS) | DX1636: =DX1623*(DX1619+DX1620) -> 918.6666667 | FP1636: Empfehlungen (ES) | FX1636: =(FX1623+FX1624+FX1628)*(FX1619+FX1620)+FX1625*FX1619 -> 8852.985393
BP1637: Vorschriften (VS) | BX1637: =BX1623*(BX1619+BX1620) -> 3927.3 | DP1637: Empfehlungen (ES) | DX1637: =(DX1624+DX1625+DX1629)*(DX1619+DX1620)+DX1626*DX1619 -> 26083.935
BP1638: Empfehlungen (ES) | BX1638: =(BX1624+BX1625+BX1630)*(BX1619+BX1620)+(BX1626+BX1627)*BX1619 -> 11962.48539 | FP1638: Mehraufwand / Mindertrag pro Jahr für die Gesamtfläche von: | FX1638: Fr./a
DP1639: Mehraufwand / Mindertrag pro Jahr für die Gesamtfläche von: | DX1639: Fr./a | FP1639: Grundwasserschutzzone S2 | FX1639: =(FX1628+FX1625+FX1624+FX1623)*$AR$168 -> 2710.648623
BP1640: Mehraufwand / Mindertrag pro Jahr für die Gesamtfläche der: | BX1640: Fr./a | DP1640: Grundwasserschutzzone S2 | DX1640: =(DX1629+DX1626+DX1625+DX1624+DX1623)*$AR$168 -> 6501.662678 | FP1640: Grundwasserschutzzone S3 | FX1640: =(FX1628+FX1624+FX1623)*$AR$169 -> 6142.33677
BP1641: Grundwasserschutzzone S2 | BX1641: =(BX1630+BX1627+BX1626+BX1625+BX1624+BX1623)*$AR$168 -> 4629.996164 | DP1641: Grundwasserschutzzone S3 | DX1641: =(DX1629+DX1625+DX1624+DX1623)*$AR$169 -> 20500.93899
BP1642: Grundwasserschutzzone S3 | BX1642: =(BX1630+BX1625+BX1624+BX1623)*$AR$169 -> 11259.78923
GV1777: Aktuelle Holzpreise
GV1781: FICHTE (Fr./m3) | HB1781: BUCHE (Fr./m3)
GV1783: Sort. | GW1783: D | GX1783: C | GY1783: B | GZ1783: A | HB1783: Sort. | HC1783: D | HD1783: C | HE1783: B | HF1783: A
GV1784: 1a | GW1784: 25 | GX1784: - | GY1784: - | GZ1784: - | HB1784: 1a | HC1784: 30 | HD1784: - | HE1784: - | HF1784: -
GV1785: 1b | GW1785: 25 | GX1785: 70 | GY1785: 80 | GZ1785: - | HB1785: 1b | HC1785: 30 | HD1785: - | HE1785: - | HF1785: -
GV1786: 2a | GW1786: 70 | GX1786: 100 | GY1786: 115 | GZ1786: - | HB1786: 2a | HC1786: 30 | HD1786: - | HE1786: - | HF1786: -
GV1787: 2b | GW1787: 75 | GX1787: 105 | GY1787: 125 | GZ1787: - | HB1787: 2b | HC1787: 30 | HD1787: - | HE1787: - | HF1787: -
GV1788: 3a | GW1788: 75 | GX1788: 110 | GY1788: 130 | GZ1788: - | HB1788: 3a | HC1788: 65 | HD1788: 65 | HE1788: 75 | HF1788: 500
GV1789: 3b | GW1789: 75 | GX1789: 110 | GY1789: 135 | GZ1789: - | HB1789: 3b | HC1789: 65 | HD1789: 75 | HE1789: 85 | HF1789: 500
GV1790: 4 | GW1790: 75 | GX1790: 110 | GY1790: 150 | GZ1790: - | HB1790: 4 | HC1790: 65 | HD1790: 80 | HE1790: 110 | HF1790: 500
GV1791: 5 | GW1791: 75 | GX1791: 105 | GY1791: 170 | GZ1791: 600 | HB1791: 5 | HC1791: 65 | HD1791: 85 | HE1791: 135 | HF1791: 500
GV1792: 6 | GW1792: 75 | GX1792: 105 | GY1792: 190 | GZ1792: 600 | HB1792: 6 | HC1792: 65 | HD1792: 90 | HE1792: 145 | HF1792: 500
GV1793: Restholz | GW1793: 15 | HB1793: Restholz | HC1793: 30
GV1796: Für aktuelle Holzpreise siehe:
GV1797: "Empfehlungen zum Rundholzverkauf" der Holzproduzenten der Kantone Aargau, beide Basel, Bern und Solothurn

Sheet Erntekostenfreie_Erlöse
B1: Erntekostenfreie Erlöse
B3: für Fichte | G3: für Buche
B4: Bonität | C4: Holzernteverfahren | G4: Bonität | H4: Holzernteverfahren | L4: Die dargestellten erntekostenfreien Erlöse werden automatisch
C5: 1) | D5: 2) | E5: 3) | H5: 1) | I5: 2) | J5: 3) | L5: auf der Benutzeroberfläche "Differenz im erntekostenfreien
B6: 18 | C6: =D69-F110 -> 66.94782502 | D6: =D69-I110 -> 513.1383908 | E6: =D69-L110 -> -12.21176264 | G6: 18 | H6: =D73-F114 -> -89.34611111 | I6: =D73-I114 -> 115.980205 | J6: =D73-L114 -> -91.35091946 | L6: Erlöse bei Laubholz-Erhöhung" im Sheet "Mehraufwand_Minderertag"
B7: 22 | C7: =D70-F111 -> 239.3612773 | D7: =D70-I111 -> 795.9629896 | E7: =D70-L111 -> 142.5295309 | G7: 22 | H7: =D74-F115 -> 46.59590691 | I7: =D74-I115 -> 287.5152055 | J7: =D74-L115 -> 9.086475368 | L7: übernommen.
B8: 26 | C8: =D71-F112 -> 365.153681 | D8: =D71-I112 -> 1114.372695 | E8: =D71-L112 -> 237.6743469 | G8: 26 | H8: =D75-F116 -> 95.62899732 | I8: =D75-I116 -> 432.4622524 | J8: =D75-L116 -> 41.81090852
B9: 30 | C9: =D72-F113 -> 499.9504256 | D9: =D72-I113 -> 1402.327839 | E9: =D72-L113 -> 341.7695794
B15: Berechnung der Holzerlöse
B17: Sort. | C17: Holzpreis FICHTE (Fr./m3) | G17: Holzpreis BUCHE (Fr./m3) | L17: Die Holzpreise werden von der Benutzeroberfläche "Aktuelle Holzpreise"
C18: D | D18: C | E18: B | F18: A | G18: D | H18: C | I18: B | J18: A | L18: aus dem Sheet "Mehraufwand_Minderertrag übernommen.
B19: 1a | C19: =Mehraufwand_Minderertrag!GW1784 -> 25 | G19: =Mehraufwand_Minderertrag!HC1784 -> 30
B20: 1b | C20: =Mehraufwand_Minderertrag!GW1785 -> 25 | D20: =Mehraufwand_Minderertrag!GX1785 -> 70 | E20: =Mehraufwand_Minderertrag!GY1785 -> 80 | G20: =Mehraufwand_Minderertrag!HC1785 -> 30
B21: 2a | C21: =Mehraufwand_Minderertrag!GW1786 -> 70 | D21: =Mehraufwand_Minderertrag!GX1786 -> 100 | E21: =Mehraufwand_Minderertrag!GY1786 -> 115 | G21: =Mehraufwand_Minderertrag!HC1786 -> 30
B22: 2b | C22: =Mehraufwand_Minderertrag!GW1787 -> 75 | D22: =Mehraufwand_Minderertrag!GX1787 -> 105 | E22: =Mehraufwand_Minderertrag!GY1787 -> 125 | G22: =Mehraufwand_Minderertrag!HC1787 -> 30
B23: 3a | C23: =Mehraufwand_Minderertrag!GW1788 -> 75 | D23: =Mehraufwand_Minderertrag!GX1788 -> 110 | E23: =Mehraufwand_Minderertrag!GY1788 -> 130 | G23: =Mehraufwand_Minderertrag!HC1788 -> 65 | H23: =Mehraufwand_Minderertrag!HD1788 -> 65 | I23: =Mehraufwand_Minderertrag!HE1788 -> 75 | J23: =Mehraufwand_Minderertrag!HF1788 -> 500
B24: 3b | C24: =Mehraufwand_Minderertrag!GW1789 -> 75 | D24: =Mehraufwand_Minderertrag!GX1789 -> 110 | E24: =Mehraufwand_Minderertrag!GY1789 -> 135 | G24: =Mehraufwand_Minderertrag!HC1789 -> 65 | H24: =Mehraufwand_Minderertrag!HD1789 -> 75 | I24: =Mehraufwand_Minderertrag!HE1789 -> 85 | J24: =Mehraufwand_Minderertrag!HF1789 -> 500
B25: 4 | C25: =Mehraufwand_Minderertrag!GW1790 -> 75 | D25: =Mehraufwand_Minderertrag!GX1790 -> 110 | E25: =Mehraufwand_Minderertrag!GY1790 -> 150 | G25: =Mehraufwand_Minderertrag!HC1790 -> 65 | H25: =Mehraufwand_Minderertrag!HD1790 -> 80 | I25: =Mehraufwand_Minderertrag!HE1790 -> 110 | J25: =Mehraufwand_Minderertrag!HF1790 -> 500
B26: 5 | C26: =Mehraufwand_Minderertrag!GW1791 -> 75 | D26: =Mehraufwand_Minderertrag!GX1791 -> 105 | E26: =Mehraufwand_Minderertrag!GY1791 -> 170 | F26: =Mehraufwand_Minderertrag!GZ1791 -> 600 | G26: =Mehraufwand_Minderertrag!HC1791 -> 65 | H26: =Mehraufwand_Minderertrag!HD1791 -> 85 | I26: =Mehraufwand_Minderertrag!HE1791 -> 135 | J26: =Mehraufwand_Minderertrag!HF1791 -> 500
B27: 6 | C27: =Mehraufwand_Minderertrag!GW1792 -> 75 | D27: =Mehraufwand_Minderertrag!GX1792 -> 105 | E27: =Mehraufwand_Minderertrag!GY1792 -> 190 | F27: =Mehraufwand_Minderertrag!GZ1792 -> 600 | G27: =Mehraufwand_Minderertrag!HC1792 -> 65 | H27: =Mehraufwand_Minderertrag!HD1792 -> 90 | I27: =Mehraufwand_Minderertrag!HE1792 -> 145 | J27: =Mehraufwand_Minderertrag!HF1792 -> 500
B28: Restholz | C28: =Mehraufwand_Minderertrag!GW1793 -> 15 | G28: =Mehraufwand_Minderertrag!HC1793 -> 30
B31: Die Holzpreise (Fr./m3) werden mit den nachfolgenden Holzmengen
B32: je Sortiment und Güteklasse (m3 o.R./ha) multipliziert. Die Ergebnisse
B33: werden anschliessend aufsummiert und durch die Umtriebszeit dividiert.
C35: Fi 18 U 120 | G35: Fi 22 U 110 | K35: Fi 26 U 100 | O35: Fi 30 U 90 | S35: Bu 18 U120 | W35: Bu 22 U 120 | AA35: Bu 26 U 100
B36: Sort. | C36: m3 o.R./ha | G36: m3 o.R./ha | K36: m3 o.R./ha | O36: m3 o.R./ha | S36: m3 o.R./ha | W36: m3 o.R./ha | AA36: m3 o.R./ha
C37: D | D37: C | E37: B | F37: A | G37: D | H37: C | I37: B | J37: A | K37: D | L37: C | M37: B | N37: A | O37: D | P37: C | Q37: B | R37: A | S37: D | T37: C | U37: B | V37: A | W37: D | X37: C | Y37: B | Z37: A | AA37: D | AB37: C | AC37: B | AD37: A
B38: 1a | C38: 85 | D38: 0 | E38: 0 | F38: 0 | G38: 79 | H38: 0 | I38: 0 | J38: 0 | K38: 97 | L38: 0 | M38: 0 | N38: 0 | O38: 104 | P38: 0 | Q38: 0 | R38: 0 | S38: 27 | T38: 0 | U38: 0 | V38: 0 | W38: 28 | X38: 0 | Y38: 0 | Z38: 0 | AA38: 27 | AB38: 0 | AC38: 0 | AD38: 0
B39: 1b | C39: 11 | D39: 53 | E39: 43 | F39: 0 | G39: 12 | H39: 62 | I39: 49 | J39: 0 | K39: 16 | L39: 81 | M39: 65 | N39: 0 | O39: 19 | P39: 94 | Q39: 76 | R39: 0 | S39: 58 | T39: 0 | U39: 0 | V39: 0 | W39: 77 | X39: 0 | Y39: 0 | Z39: 0 | AA39: 106 | AB39: 0 | AC39: 0 | AD39: 0
B40: 2a | C40: 9 | D40: 43 | E40: 34 | F40: 0 | G40: 10 | H40: 52 | I40: 41 | J40: 0 | K40: 14 | L40: 68 | M40: 54 | N40: 0 | O40: 15 | P40: 75 | Q40: 60 | R40: 0 | S40: 43 | T40: 0 | U40: 0 | V40: 0 | W40: 48 | X40: 0 | Y40: 0 | Z40: 0 | AA40: 56 | AB40: 0 | AC40: 0 | AD40: 0
B41: 2b | C41: 12 | D41: 59 | E41: 48 | F41: 0 | G41: 13 | H41: 67 | I41: 53 | J41: 0 | K41: 15 | L41: 75 | M41: 60 | N41: 0 | O41: 16 | P41: 79 | Q41: 63 | R41: 0 | S41: 83 | T41: 0 | U41: 0 | V41: 0 | W41: 51 | X41: 0 | Y41: 0 | Z41: 0 | AA41: 62 | AB41: 0 | AC41: 0 | AD41: 0
B42: 3a | C42: 14 | D42: 57 | E42: 71 | F42: 0 | G42: 16 | H42: 63 | I42: 79 | J42: 0 | K42: 19 | L42: 75 | M42: 94 | N42: 0 | O42: 18 | P42: 71 | Q42: 89 | R42: 0 | S42: 30 | T42: 49 | U42: 18 | V42: 2 | W42: 31 | X42: 51 | Y42: 18 | Z42: 2 | AA42: 35 | AB42: 58 | AC42: 21 | AD42: 2
B43: 3b | C43: 12 | D43: 49 | E43: 61 | F43: 0 | G43: 13 | H43: 51 | I43: 64 | J43: 0 | K43: 13 | L43: 53 | M43: 66 | N43: 0 | O43: 15 | P43: 60 | Q43: 75 | R43: 0 | S43: 21 | T43: 35 | U43: 13 | V43: 1 | W43: 26 | X43: 43 | Y43: 15 | Z43: 2 | AA43: 28 | AB43: 47 | AC43: 17 | AD43: 2
B44: 4 | C44: 14 | D44: 57 | E44: 71 | F44: 0 | G44: 26 | H44: 103 | I44: 128 | J44: 0 | K44: 30 | L44: 120 | M44: 150 | N44: 0 | O44: 32 | P44: 127 | Q44: 159 | R44: 0 | S44: 13 | T44: 27 | U44: 25 | V44: 1 | W44: 40 | X44: 80 | Y44: 76 | Z44: 4 | AA44: 41 | AB44: 82 | AC44: 78 | AD44: 4
B45: 5 | C45: 3 | D45: 10 | E45: 14 | F45: 1 | G45: 7 | H45: 25 | I45: 36 | J45: 4 | K45: 13 | L45: 44 | M45: 63 | N45: 6 | O45: 16 | P45: 57 | Q45: 82 | R45: 8 | S45: 0 | T45: 0 | U45: 0 | V45: 0 | W45: 14 | X45: 28 | Y45: 26 | Z45: 2 | AA45: 28 | AB45: 57 | AC45: 53 | AD45: 4
B46: 6 | C46: 0 | D46: 0 | E46: 0 | F46: 0 | G46: 1 | H46: 4 | I46: 4 | J46: 0 | K46: 3 | L46: 13 | M46: 14 | N46: 2 | O46: 6 | P46: 23 | Q46: 26 | R46: 3 | S46: 0 | T46: 0 | U46: 0 | V46: 0 | W46: 4 | X46: 7 | Y46: 7 | Z46: 1 | AA46: 4 | AB46: 7 | AC46: 8 | AD46: 1
B47: Restholz | C47: 29 | G47: 25 | K47: 19 | O47: 22 | S47: 185 | W47: 249 | AA47: 279
C50: Fi 18 U 120 | G50: Fi 22 U 110 | K50: Fi 26 U 100 | O50: Fi 30 U 90 | S50: Bu 18 U 120 | W50: Bu 22 U 120 | AA50: Bu 26 U 100
B51: Sort. | C51: Erlös (Fr./ha) | G51: Erlös (Fr./ha) | K51: Erlös (Fr./ha) | O51: Erlös (Fr./ha) | S51: Erlös (Fr./ha) | W51: Erlös (Fr./ha) | AA51: Erlös (Fr./ha)
C52: D | D52: C | E52: B | F52: A | G52: D | H52: C | I52: B | J52: A | K52: D | L52: C | M52: B | N52: A | O52: D | P52: C | Q52: B | R52: A | S52: D | T52: C | U52: B | V52: A | W52: D | X52: C | Y52: B | Z52: A | AA52: D | AB52: C | AC52: B | AD52: A
B53: 1a | C53: =C19*C38 -> 2125 | D53: 0 | E53: 0 | F53: 0 | G53: =C19*G38 -> 1975 | H53: =D19*H38 -> 0 | I53: =E19*I38 -> 0 | J53: =F19*J38 -> 0 | K53: =C19*K38 -> 2425 | L53: =D19*L38 -> 0 | M53: =E19*M38 -> 0 | N53: =F19*N38 -> 0 | O53: =C19*O38 -> 2600 | P53: =D19*P38 -> 0 | Q53: =E19*Q38 -> 0 | R53: =F19*R38 -> 0 | S53: =G19*S38 -> 810 | T53: =H19*T38 -> 0 | U53: =I19*U38 -> 0 | V53: =J19*V38 -> 0 | W53: =G19*W38 -> 840 | X53: =H19*X38 -> 0 | Y53: =I19*Y38 -> 0 | Z53: =J19*Z38 -> 0 | AA53: =G19*AA38 -> 810 | AB53: =H19*AB38 -> 0 | AC53: =I19*AC38 -> 0 | AD53: =J19*AD38 -> 0
B54: 1b | C54: 275 | D54: 3710 | E54: 3440 | F54: 0 | G54: 300 | H54: 4340 | I54: 3920 | J54: 0 | K54: 400 | L54: 5670 | M54: 5200 | N54: 0 | O54: 475 | P54: 6580 | Q54: 6080 | R54: 0 | S54: 1740 | T54: 0 | U54: 0 | V54: 0 | W54: 2310 | X54: 0 | Y54: 0 | Z54: 0 | AA54: 3180 | AB54: 0 | AC54: 0 | AD54: 0
B55: 2a | C55: 630 | D55: 4300 | E55: 3910 | F55: 0 | G55: 700 | H55: 5200 | I55: 4715 | J55: 0 | K55: 980 | L55: 6800 | M55: 6210 | N55: 0 | O55: 1050 | P55: 7500 | Q55: 6900 | R55: 0 | S55: 1290 | T55: 0 | U55: 0 | V55: 0 | W55: 1440 | X55: 0 | Y55: 0 | Z55: 0 | AA55: 1680 | AB55: 0 | AC55: 0 | AD55: 0
B56: 2b | C56: 900 | D56: 6195 | E56: 6000 | F56: 0 | G56: 975 | H56: 7035 | I56: 6625 | J56: 0 | K56: 1125 | L56: 7875 | M56: 7500 | N56: 0 | O56: 1200 | P56: 8295 | Q56: 7875 | R56: 0 | S56: 2490 | T56: 0 | U56: 0 | V56: 0 | W56: 1530 | X56: 0 | Y56: 0 | Z56: 0 | AA56: 1860 | AB56: 0 | AC56: 0 | AD56: 0
B57: 3a | C57: 1050 | D57: 6270 | E57: 9230 | F57: 0 | G57: 1200 | H57: 6930 | I57: 10270 | J57: 0 | K57: 1425 | L57: 8250 | M57: 12220 | N57: 0 | O57: 1350 | P57: 7810 | Q57: 11570 | R57: 0 | S57: 1950 | T57: 3185 | U57: 1350 | V57: 1000 | W57: 2015 | X57: 3315 | Y57: 1350 | Z57: 1000 | AA57: 2275 | AB57: 3770 | AC57: 1575 | AD57: 1000
B58: 3b | C58: 900 | D58: 5390 | E58: 8235 | F58: 0 | G58: 975 | H58: 5610 | I58: 8640 | J58: 0 | K58: 975 | L58: 5830 | M58: 8910 | N58: 0 | O58: 1125 | P58: 6600 | Q58: 10125 | R58: 0 | S58: 1365 | T58: 2625 | U58: 1105 | V58: 500 | W58: 1690 | X58: 3225 | Y58: 1275 | Z58: 1000 | AA58: 1820 | AB58: 3525 | AC58: 1445 | AD58: 1000
B59: 4 | C59: 1050 | D59: 6270 | E59: 10650 | F59: 0 | G59: 1950 | H59: 11330 | I59: 19200 | J59: 0 | K59: 2250 | L59: 13200 | M59: 22500 | N59: 0 | O59: 2400 | P59: 13970 | Q59: 23850 | R59: 0 | S59: 845 | T59: 2160 | U59: 2750 | V59: 500 | W59: 2600 | X59: 6400 | Y59: 8360 | Z59: 2000 | AA59: 2665 | AB59: 6560 | AC59: 8580 | AD59: 2000
B60: 5 | C60: 225 | D60: 1050 | E60: 2380 | F60: 600 | G60: 525 | H60: 2625 | I60: 6120 | J60: 2400 | K60: 975 | L60: 4620 | M60: 10710 | N60: 3600 | O60: 1200 | P60: 5985 | Q60: 13940 | R60: 4800 | S60: 0 | T60: 0 | U60: 0 | V60: 0 | W60: 910 | X60: 2380 | Y60: 3510 | Z60: 1000 | AA60: 1820 | AB60: 4845 | AC60: 7155 | AD60: 2000
B61: 6 | C61: 0 | D61: 0 | E61: 0 | F61: 0 | G61: 75 | H61: 420 | I61: 760 | J61: 0 | K61: 225 | L61: 1365 | M61: 2660 | N61: 1200 | O61: 450 | P61: 2415 | Q61: 4940 | R61: 1800 | S61: 0 | T61: 0 | U61: 0 | V61: 0 | W61: 260 | X61: 630 | Y61: 1015 | Z61: 500 | AA61: 260 | AB61: 630 | AC61: 1160 | AD61: 500
B62: Restholz | C62: =C28*C47 -> 435 | G62: =C28*G47 -> 375 | K62: =C28*K47 -> 285 | O62: =C28*O47 -> 330 | S62: =G28*S47 -> 5550 | W62: =G28*W47 -> 7470 | AA62: =G28*AA47 -> 8370
B64: Summe/U | C64: =SUM(C53:F62)/120 -> 710.1666667 | D64: Fr.ha-1a-1 | G64: =SUM(G53:J62)/110 -> 1047.181818 | H64: Fr.ha-1a-1 | K64: =SUM(K53:N62)/100 -> 1453.85 | L64: Fr.ha-1a-1 | O64: =SUM(O53:R62)/90 -> 1813.5 | P64: Fr.ha-1a-1 | S64: =SUM(S53:V62)/120 -> 260.125 | T64: Fr.ha-1a-1 | W64: =SUM(W53:Z62)/120 -> 483.5416667 | X64: Fr.ha-1a-1 | AA64: =SUM(AA53:AD62)/100 -> 704.85 | AB64: Fr.ha-1a-1
B67: Erlös je Baumart und Bonität in Fr. pro Hektar und Jahr (Fr.ha-1a-1):
B69: Fi 18 U 120: | D69: =C64 -> 710.1666667 | E69: Fr.ha-1a-1
B70: Fi 22 U 110: | D70: =G64 -> 1047.181818 | E70: Fr.ha-1a-1
B71: Fi 26 U 100: | D71: =K64 -> 1453.85 | E71: Fr.ha-1a-1
B72: Fi 30 U 90: | D72: =O64 -> 1813.5 | E72: Fr.ha-1a-1
B73: Bu 18 U 120: | D73: =S64 -> 260.125 | E73: Fr.ha-1a-1
B74: Bu 22 U 120: | D74: =W64 -> 483.5416667 | E74: Fr.ha-1a-1
B75: Bu 26 U 100: | D75: =AA64 -> 704.85 | E75: Fr.ha-1a-1
B81: Berechnung der Holzerntekosten
B83: Kostenansätze (Fr./h) für die verschiedenen Arbeitsverfahren nach VSFU:
B85: 1) | C85: motormanuelle Holzernte (Regielohn 2010): | I85: =Mehraufwand_Minderertrag!BX328 -> 75 | J85: Fr./h | K85: Die Kostenansätze werden aus dem Excel-Sheet "Mehraufwand_Minderertrag"
C86: Forstspezialschlepper (inkl. 83 Fr./h für Maschinist): | I86: =Mehraufwand_Minderertrag!BX331 -> 190 | J86: Fr./h | K86: von den Benutzeroberflächen "HV 1", "HV 2" und "HV 3" übernommen
B87: 2) | C87: Radharvester (inkl. Fahrer): | I87: =Mehraufwand_Minderertrag!DX328 -> 300 | J87: Fr./h
C88: Forwarder (inkl. Fahrer): | I88: =Mehraufwand_Minderertrag!DX331 -> 200 | J88: Fr./h
B89: 3) | C89: motormanuelle Holzernte (Regielohn 2010): | I89: =Mehraufwand_Minderertrag!FX328 -> 75 | J89: Fr./h
C90: Mobilseilkran (inkl. Maschinist): | I90: =Mehraufwand_Minderertrag!FX331 -> 230 | J90: Fr./h
B93: Produktivität je Holzernteverfahren und Prozess (m3/PSH15), berechnet mit HeProMo: | L93: Anfallende Holzmenge (Vol. i.R. + Rest) über den Zeitraum U, berechnet mit SorSim:
D95: 1) | F95: 2) | H95: 3) | L95: Fi 18 U 120: | N95: 949 | O95: m3
D96: manuell | E96: Schlepper | F96: Harvester | G96: Forwarder | H96: manuell | I96: Seilkran | L96: Fi 22 U 110: | N96: 1201 | O96: m3
B97: Fi 18 U 120 | D97: 1.32 | E97: 7.75 | F97: 18.8 | G97: 22.33 | H97: 1.1 | I97: 9.93 | L97: Fi 26 U 100: | N97: 1485 | O97: m3
B98: Fi 22 U 110 | D98: 1.48 | E98: 8.15 | F98: 21.1 | G98: 22.75 | H98: 1.24 | I98: 10.28 | L98: Fi 30 U 90: | N98: 1650 | O98: m3
B99: Fi 26 U 100 | D99: 1.5 | E99: 8.15 | F99: 21.4 | G99: 22.62 | H99: 1.26 | I99: 10.28 | L99: Bu 18 U 120: | N99: 658 | O99: m3
B100: Fi 30 U 90 | D100: 1.54 | E100: 8.28 | F100: 22 | G100: 22.75 | H100: 1.29 | I100: 10.39 | L100: Bu 22 U 120: | N100: 970 | O100: m3
B101: Bu 18 U 120 | D101: 2.25 | E101: 6.25 | F101: 17.5 | G101: 21.87 | H101: 1.9 | I101: 9.34 | L101: Bu 26 U 100: | N101: 1158 | O101: m3
B102: Bu 22 U 120 | D102: 2.47 | E102: 8.02 | F102: 19.8 | G102: 21.98 | H102: 2.08 | I102: 10.16
B103: Bu 26 U 100 | D103: 2.56 | E103: 8.15 | F103: 20.8 | G103: 21.98 | H103: 2.15 | I103: 10.28
B106: Erntekosten je Holzernteverfahren und Prozess (Fr.ha-1a-1):
D108: 1) | G108: 2) | J108: 3) | N108: Die dargestellten Holzerntekosten berechnen sich nach folgender Formel:
D109: manuell | E109: Schlepper | F109: gesamt | G109: Harvester | H109: Forwarder | I109: gesamt | J109: manuell | K109: Seilkran | L109: gesamt
B110: Fi 18 U | C110: 120 | D110: =((1/D97)*I$85*N95)/C110 -> 449.3371212 | E110: =((1/E97)*I$86*N95)/C110 -> 193.8817204 | F110: =D110+E110 -> 643.2188416 | G110: =((1/F97)*I$87*N95)/C110 -> 126.1968085 | H110: =((1/G97)*I$88*N95)/C110 -> 70.83146738 | I110: =G110+H110 -> 197.0282759 | J110: =((1/H97)*I$89*N95)/C110 -> 539.2045455 | K110: =((1/I97)*I$90*N95)/C110 -> 183.1738839 | L110: =J110+K110 -> 722.3784293
B111: Fi 22 U | C111: 110 | D111: 553.2862408 | E111: 254.5343001 | F111: =D111+E111 -> 807.8205408 | G111: 155.2348126 | H111: 95.98401598 | I111: =G111+H111 -> 251.2188286 | J111: =((1/H98)*I$89*N96)/C111 -> 660.3739003 | K111: 244.278387 | L111: =J111+K111 -> 904.6522873
B112: Fi 26 U | C112: 100 | D112: 742.5 | E112: 346.196319 | F112: 1088.696319 | G112: 208.1775701 | H112: 131.2997347 | I112: 339.4773048 | J112: 883.9285714 | K112: 332.2470817 | L112: 1216.175653
B113: Fi 30 U | C113: 90 | D113: 892.8571429 | E113: 420.6924316 | F113: 1313.549574 | G113: 250 | H113: 161.1721612 | I113: 411.1721612 | J113: 1065.891473 | K113: 405.8389477 | L113: 1471.730421
B114: Bu 18 U | C114: 120 | D114: 182.7777778 | E114: 166.6933333 | F114: 349.4711111 | G114: 94 | H114: 50.144795 | I114: 144.144795 | J114: 216.4473684 | K114: 135.028551 | L114: 351.4759195
B115: Bu 22 U | C115: 120 | D115: 245.4453441 | E115: 191.5004156 | F115: 436.9457598 | G115: 122.4747475 | H115: 73.55171368 | I115: 196.0264612 | J115: 291.4663462 | K115: 182.9888451 | L115: 474.4551913
B116: Bu 26 U | C116: 100 | D116: 339.2578125 | E116: 269.9631902 | F116: 609.2210027 | G116: 167.0192308 | H116: 105.3685168 | I116: 272.3877476 | J116: 403.9534884 | K116: 259.0856031 | L116: 663.0390915
